[Event "4NCL Div 1 2024-25"]
[Site "England"]
[Date "2025.04.05"]
[Round "7.6"]
[White "Jackson, James P"]
[Black "Milson, Samuel A"]
[Result "1-0"]
[Annotator "RC"]
[ECO "C10"]
[WhiteElo "2373"]
[BlackElo "2069"]
[PlyCount "39"]
[EventDate "2024.11.23"]
[EventType "team-tourn"]
[EventCountry "ENG"]
[SourceTitle "playchess.com"]
[Source "ChessBase"]
[SourceQuality "1"]
[TimeControl "40/6000+30:3000+30"]

1. e4 {[%emt 0:14:15]} e6 {[%emt 0:10:13]} 2. d4 {[%emt 0:00:06]} d5 {[%emt 0:00:11]} 3. Nc3 {[%emt 0:00:06]} Be7 {[%emt 0:00:20]} 4. Bd3 {[%emt 0:03:38]} c5 {[%emt 0:00:23]} 5. e5 {[%emt 0:07:30]} cxd4 {[%emt 0:04:44]} 6. Nce2 {[%emt 0:09:25]} Nc6 {[%emt 0:01:08]} 7. Nf3 {[%emt 0:00:06]} Qc7 {[%emt 0:08:17]} 8. Bf4 {[%emt 0:04:21]} Bb4+ {[%emt 0:01:59]} 9. Kf1 {[%emt 0:00:09]} f6 {[%emt 0:11:29]} 10. Nexd4 {[%emt 0:05:48]} Nxd4 {[%emt 0:12:40]} 11. Nxd4 {[%emt 0:01:06]} fxe5 {[%emt 0:01:30]} 12. Nb5 {[%emt 0:01:30]} Qe7 {[%emt 0:10:10]} 13. Bxe5 {[%emt 0:03:08]} Ba5 {[%emt 0:01:24]} 14. c4 {[%emt 0:10:46]} a6 {[%emt 0:05:13]} 15. Qh5+ {[%emt 0:06:27]} Kd8 {[%emt 0:00:19]} 16. Nd6 {[%emt 0:09:04]} Nh6 {[%emt 0:02:40]} 17. Bg3 {[%emt 0:02:42]} Bc7 {[%emt 0:03:54]} 18. c5 {[%emt 0:05:53]} Kd7 {[%emt 0:01:30]} 19. Rc1 {[%emt 0:05:25]} Rf8 {[%emt 0:13:26]} 20. Bh4 {[%emt 0:04:53]} 1-0

[Event "4NCL Div 1 2024-25"]
[Site "England"]
[Date "2025.04.05"]
[Round "7.7"]
[White "Birtwistle, Nigel"]
[Black "Hunt, Harriet V"]
[Result "0-1"]
[Annotator "ChessBase"]
[ECO "B90"]
[WhiteElo "2041"]
[BlackElo "2298"]
[PlyCount "76"]
[EventDate "2024.11.23"]
[EventType "team-tourn"]
[EventCountry "ENG"]
[SourceTitle "playchess.com"]
[Source "ChessBase"]
[SourceQuality "1"]
[TimeControl "40/6000+30:3000+30"]

1. e4 {[%emt 0:10:07]} c5 {[%emt 0:10:10]} 2. Nf3 {[%emt 0:00:26]} d6 {[%emt 0:00:41]} 3. d4 {[%emt 0:00:26]} cxd4 {[%emt 0:00:08]} 4. Nxd4 {[%emt 0:00:21]} Nf6 {[%emt 0:00:09]} 5. Nc3 {[%emt 0:00:18]} a6 {[%emt 0:00:06]} 6. Be3 {[%emt 0:01:36]} e5 {[%emt 0:00:36]} 7. Nf3 {[%emt 0:01:11]} Qc7 {[%emt 0:01:31]} 8. a4 {[%emt 0:01:02]} h6 {[%emt 0:09:35]} 9. Be2 {[%emt 0:03:56]} Be7 {[%emt 0:02:14]} 10. O-O {[%emt 0:00:51]} O-O {[%emt 0:02:21]} 11. Nd2 {[%emt 0:03:41]} Be6 {[%emt 0:01:40]} 12. Bf3 {[%emt 0:04:41]} Nbd7 {[%emt 0:04:09]} 13. Re1 {[%emt 0:05:18]} Rfc8 {[%emt 0:04:33]} 14. a5 {[%emt 0:05:11]} b5 {[%emt 0:08:49]} 15. axb6 {[%emt 0:09:24]} Nxb6 {[%emt 0:00:22]} 16. Be2 {[%emt 0:01:33]} a5 {[%emt 0:03:35]} 17. f3 {[%emt 0:11:15]} d5 {[%emt 0:03:27]} 18. Bd3 {[%emt 0:13:13]} d4 {[%emt 0:10:12]} 19. Nb5 {[%emt 0:01:06]} Qb7 {[%emt 0:04:07]} 20. Bf2 {[%emt 0:01:20]} Nbd7 {[%emt 0:02:00]} 21. Bg3 {[%emt 0:09:49]} Nh5 {[%emt 0:02:53]} 22. f4 {[%emt 0:02:41]} Nxf4 {[%emt 0:02:49]} 23. Bxf4 {[%emt 0:01:13]} exf4 {[%emt 0:00:07]} 24. Kh1 {[%emt 0:02:04]} Qb6 {[%emt 0:03:55]} 25. Nf3 {[%emt 0:02:47]} Bg4 {[%emt 0:03:18]} 26. Qd2 {[%emt 0:04:57]} Bxf3 {[%emt 0:06:03]} 27. gxf3 {[%emt 0:00:07]} Ne5 {[%emt 0:00:19]} 28. Qe2 {[%emt 0:03:45]} Rab8 {[%emt 0:02:53]} 29. c4 {[%emt 0:05:45]} dxc3 {[%emt 0:02:17]} 30. Nxc3 {[%emt 0:00:43]} Qxb2 {[%emt 0:01:36]} 31. Nd5 {[%emt 0:00:29]} Bd8 {[%emt 0:01:56]} 32. Ra2 {[%emt 0:03:21]} Qxe2 {[%emt 0:00:45]} 33. Bxe2 {[%emt 0:00:07]} g5 {[%emt 0:01:15]} 34. h4 {[%emt 0:00:49]} Rb3 {[%emt 0:00:48]} 35. Rf1 {[%emt 0:01:07]} Rcb8 {[%emt 0:01:00]} 36. hxg5 {[%emt 0:00:44]} hxg5 {[%emt 0:00:07]} 37. Rg1 {[%emt 0:00:56]} Kf8 {[%emt 0:01:37]} 38. Kg2 {[%emt 0:00:23]} g4 {[%emt 0:01:35]} 0-1

[Event "4NCL Div 1 2024-25"]
[Site "England"]
[Date "2025.04.05"]
[Round "7.8"]
[White "Grant, Jonathan I M"]
[Black "Dilley, Jason M"]
[Result "1/2-1/2"]
[Annotator "ChessBase"]
[ECO "A29"]
[WhiteElo "2140"]
[BlackElo "2005"]
[PlyCount "227"]
[EventDate "2024.11.23"]
[EventType "team-tourn"]
[EventCountry "ENG"]
[SourceTitle "playchess.com"]
[Source "ChessBase"]
[SourceQuality "1"]
[TimeControl "40/6000+30:3000+30"]

1. c4 {[%emt 0:10:03]} e5 {[%emt 0:10:15]} 2. Nc3 {[%emt 0:00:05]} Nf6 {[%emt 0:00:45]} 3. Nf3 {[%emt 0:00:09]} Nc6 {[%emt 0:01:18]} 4. g3 {[%emt 0:00:06]} g6 {[%emt 0:02:00]} 5. Bg2 {[%emt 0:00:44]} Bg7 {[%emt 0:00:06]} 6. d4 {[%emt 0:00:30]} exd4 {[%emt 0:07:14]} 7. Nxd4 {[%emt 0:00:06]} O-O {[%emt 0:07:14]} 8. O-O {[%emt 0:02:18]} Re8 {[%emt 0:08:36]} 9. Nxc6 {[%emt 0:00:38]} dxc6 {[%emt 0:10:50]} 10. Bf4 {[%emt 0:06:41]} Qxd1 {[%emt 0:04:11]} 11. Raxd1 {[%emt 0:01:35]} Be6 {[%emt 0:00:09]} 12. b3 {[%emt 0:02:21]} Nh5 {[%emt 0:06:38]} 13. Bd2 {[%emt 0:01:15]} Rad8 {[%emt 0:02:40]} 14. Na4 {[%emt 0:06:19]} Bg4 {[%emt 0:09:03]} 15. Bg5 {[%emt 0:15:39]} Rd6 {[%emt 0:11:46]} 16. Bf3 {[%emt 0:16:01]} Bxf3 {[%emt 0:01:52]} 17. exf3 {[%emt 0:00:06]} Bd4 {[%emt 0:04:04]} 18. g4 {[%emt 0:06:18]} Ng7 {[%emt 0:05:10]} 19. Bf4 {[%emt 0:02:26]} Be5 {[%emt 0:01:07]} 20. Be3 {[%emt 0:01:15]} Ne6 {[%emt 0:15:32]} 21. Nc5 {[%emt 0:02:41]} b6 {[%emt 0:00:00]} 22. Nxe6 {[%emt 0:06:26]} Rexe6 {[%emt 0:00:00]} 23. c5 {[%emt 0:03:18]} Rd5 {[%emt 0:00:00]} 24. Rxd5 {[%emt 0:01:58]} cxd5 {[%emt 0:00:00]} 25. Rd1 {[%emt 0:00:52]} d4 {[%emt 0:00:00]} 26. Bxd4 {[%emt 0:00:43]} Bxd4 {[%emt 0:00:00]} 27. Rxd4 {[%emt 0:00:06]} bxc5 {[%emt 0:00:00]} 28. Rc4 {[%emt 0:05:00]} Ra6 {[%emt 0:00:00]} 29. Rxc5 {[%emt 0:03:09]} Rxa2 {[%emt 0:00:00]} 30. Rxc7 {[%emt 0:00:05]} a5 {[%emt 0:00:00]} 31. Kg2 {[%emt 0:02:46]} a4 {[%emt 0:00:00]} 32. bxa4 {[%emt 0:01:01]} Rxa4 {[%emt 0:00:00]} 33. Rc5 {[%emt 0:01:06]} Kg7 {[%emt 0:00:00]} 34. Kg3 {[%emt 0:00:45]} h6 {[%emt 0:00:00]} 35. h4 {[%emt 0:00:47]} Ra3 {[%emt 0:00:00]} 36. h5 {[%emt 0:01:57]} g5 {[%emt 0:00:00]} 37. Re5 {[%emt 0:00:33]} Rb3 {[%emt 0:00:00]} 38. Kg2 {[%emt 0:02:09]} Rb1 {[%emt 0:02:49]} 39. Rf5 {[%emt 0:01:21]} Ra1 {[%emt 0:01:30]} 40. f4 {[%emt 0:00:24]} Ra4 {[%emt 0:01:57]} 41. Kg3 {[%emt 0:50:34]} f6 {[%emt 0:50:51]} 42. f3 {[%emt 0:05:39]} Rb4 {[%emt 0:00:07]} 43. fxg5 {[%emt 0:00:51]} fxg5 {[%emt 0:00:07]} 44. Kf2 {[%emt 0:01:43]} Rb3 {[%emt 0:00:19]} 45. Ke2 {[%emt 0:00:31]} Ra3 {[%emt 0:00:08]} 46. Rd5 {[%emt 0:00:16]} Rb3 {[%emt 0:01:05]} 47. Rd7+ {[%emt 0:00:45]} Kg8 {[%emt 0:00:18]} 48. Rd3 {[%emt 0:00:22]} Rb4 {[%emt 0:01:26]} 49. Ke3 {[%emt 0:00:00]} Rf4 {[%emt 0:00:00]} 50. Rd5 {[%emt 0:00:00]} Kg7 {[%emt 0:00:00]} 51. Rf5 {[%emt 0:00:00]} Ra4 {[%emt 0:00:00]} 52. Re5 {[%emt 0:00:00]} Rf4 {[%emt 0:00:00]} 53. Re6 {[%emt 0:00:00]} Ra4 {[%emt 0:00:00]} 54. Rg6+ {[%emt 0:00:00]} Kh7 {[%emt 0:00:00]} 55. Rd6 {[%emt 0:00:00]} Rf4 {[%emt 0:00:00]} 56. Rd4 {[%emt 0:00:00]} Rf7 {[%emt 0:00:00]} 57. f4 {[%emt 0:00:00]} gxf4+ {[%emt 0:00:00]} 58. Rxf4 {[%emt 0:00:00]} Re7+ {[%emt 0:00:00]} 59. Re4 {[%emt 0:00:00]} Rf7 {[%emt 0:00:00]} 60. Re6 {[%emt 0:00:00]} Rg7 {[%emt 0:00:00]} 61. Kf4 {[%emt 0:00:00]} Rg5 {[%emt 0:00:00]} 62. Re7+ {[%emt 0:00:00]} Kh8 {[%emt 0:00:00]} 63. Re4 {[%emt 0:00:00]} Kh7 {[%emt 0:00:00]} 64. Rd4 {[%emt 0:00:52]} Kh8 {[%emt 0:00:00]} 65. Rd8+ {[%emt 0:00:47]} Kh7 {[%emt 0:00:00]} 66. Rf8 {[%emt 0:00:42]} Ra5 {[%emt 0:00:00]} 67. Rf7+ {[%emt 0:02:17]} Kh8 {[%emt 0:00:00]} 68. Rf6 {[%emt 0:02:32]} Kh7 {[%emt 0:00:00]} 69. Re6 {[%emt 0:00:25]} Rg5 {[%emt 0:00:00]} 70. Re4 {[%emt 0:00:30]} Kh8 {[%emt 0:00:00]} 71. Re5 {[%emt 0:01:50]} Rg7 {[%emt 0:00:00]} 72. Re6 {[%emt 0:01:27]} Kh7 {[%emt 0:00:00]} 73. Re8 {[%emt 0:00:17]} Rg5 {[%emt 0:00:00]} 74. Rf8 {[%emt 0:01:04]} Ra5 {[%emt 0:00:00]} 75. Rf7+ {[%emt 0:01:08]} Kh8 {[%emt 0:00:00]} 76. Rf6 {[%emt 0:00:10]} Kh7 {[%emt 0:00:00]} 77. Rg6 {[%emt 0:00:07]} Ra4+ {[%emt 0:00:00]} 78. Kg3 {[%emt 0:00:38]} Ra3+ {[%emt 0:00:00]} 79. Kh4 {[%emt 0:00:25]} Rb3 {[%emt 0:00:00]} 80. Re6 {[%emt 0:00:21]} Ra3 {[%emt 0:00:00]} 81. Re7+ {[%emt 0:00:45]} Kh8 {[%emt 0:00:00]} 82. Re5 {[%emt 0:00:14]} Kh7 {[%emt 0:00:00]} 83. Re4 {[%emt 0:00:12]} Rb3 {[%emt 0:00:00]} 84. Ra4 {[%emt 0:00:28]} Rc3 {[%emt 0:00:00]} 85. Ra7+ {[%emt 0:00:24]} Kh8 {[%emt 0:00:00]} 86. Ra1 {[%emt 0:00:39]} Kh7 {[%emt 0:00:00]} 87. Rg1 {[%emt 0:00:18]} Ra3 {[%emt 0:00:00]} 88. Rg3 {[%emt 0:00:28]} Ra2 {[%emt 0:00:00]} 89. Rb3 {[%emt 0:00:08]} Ra4 {[%emt 0:00:00]} 90. Kg3 {[%emt 0:00:08]} Ra5 {[%emt 0:00:00]} 91. Rb7+ {[%emt 0:00:43]} Kh8 {[%emt 0:00:00]} 92. Kf4 {[%emt 0:00:12]} Rg5 {[%emt 0:00:00]} 93. Re7 {[%emt 0:00:37]} Rg8 {[%emt 0:00:00]} 94. Re5 {[%emt 0:02:39]} Kh7 {[%emt 0:00:00]} 95. Re4 {[%emt 0:00:31]} Rg5 {[%emt 0:00:00]} 96. Re6 {[%emt 0:00:15]} Rg7 {[%emt 0:00:00]} 97. Rd6 {[%emt 0:00:40]} Rg5 {[%emt 0:00:00]} 98. Rd7+ {[%emt 0:00:26]} Kh8 {[%emt 0:00:00]} 99. Rd4 {[%emt 0:00:27]} Kh7 {[%emt 0:00:00]} 100. Re4 {[%emt 0:00:37]} Kh8 {[%emt 0:00:00]} 101. Ke3 {[%emt 0:00:31]} Kh7 {[%emt 0:00:00]} 102. Rf4 {[%emt 0:00:14]} Kh8 {[%emt 0:00:00]} 103. Re4 {[%emt 0:01:02]} Kh7 {[%emt 0:00:00]} 104. Kf4 {[%emt 0:00:25]} Kh8 {[%emt 0:00:00]} 105. Re5 {[%emt 0:00:35]} Rg8 {[%emt 0:00:00]} 106. Rf5 {[%emt 0:01:11]} Kh7 {[%emt 0:00:00]} 107. Ra5 {[%emt 0:00:21]} Kh8 {[%emt 0:00:00]} 108. g5 {[%emt 0:00:22]} Rxg5 {[%emt 0:00:00]} 109. Rxg5 {[%emt 0:00:10]} hxg5+ {[%emt 0:00:00]} 110. Kxg5 {[%emt 0:00:09]} Kh7 {[%emt 0:00:00]} 111. h6 {[%emt 0:00:10]} Kh8 {[%emt 0:00:00]} 112. Kg6 {[%emt 0:00:26]} Kg8 {[%emt 0:00:00]} 113. h7+ {[%emt 0:00:08]} Kh8 {[%emt 0:00:00]} 114. Kh6 {[%emt 0:03:00]} 1/2-1/2

[Event "4NCL Div 1 2024-25"]
[Site "England"]
[Date "2025.04.05"]
[Round "7.9"]
[White "Parker, Jonathan F"]
[Black "Lupulescu, Constantin"]
[Result "1/2-1/2"]
[Annotator "TA"]
[ECO "E13"]
[WhiteElo "2523"]
[BlackElo "2597"]
[PlyCount "52"]
[EventDate "2024.11.23"]
[EventType "team-tourn"]
[EventCountry "ENG"]
[SourceTitle "playchess.com"]
[Source "ChessBase"]
[SourceQuality "1"]
[TimeControl "40/6000+30:3000+30"]

{[%evp 26,52,-19,-28,0,-18,-16,-10,-16,-45,-54,-45,-60,-35,-33,-50,-58,-58,-46,-51,-39,-59,-14,-51,-51,-56,-48,-53,-41]} 1. d4 {[%emt 0:12:02]} Nf6 {[%emt 0:10:14]} 2. c4 {[%emt 0:00:03]} e6 {[%emt 0:00:04]} 3. Nc3 {[%emt 0:00:12]} Bb4 {[%emt 0:00:12]} 4. Nf3 {[%emt 0:00:14]} b6 {[%emt 0:03:15]} 5. Bg5 {[%emt 0:00:33]} h6 {[%emt 0:00:28]} 6. Bh4 {[%emt 0:00:05]} g5 {[%emt 0:01:57]} 7. Bg3 {[%emt 0:00:05]} Ne4 {[%emt 0:00:07]} 8. Qc2 {[%emt 0:00:06]} Bb7 {[%emt 0:00:41]} 9. e3 {[%emt 0:00:10]} d6 {[%emt 0:05:43]} 10. Bd3 {[%emt 0:01:23]} Bxc3+ {[%emt 0:00:19]} 11. bxc3 {[%emt 0:00:06]} f5 {[%emt 0:00:07]} 12. d5 {[%emt 0:01:04]} Nd7 {[%emt 0:03:30]} 13. Bxe4 {[%emt 0:01:46]} fxe4 {[%emt 0:01:00]} 14. Qxe4 {[%emt 0:00:06]} Qf6 {[%emt 0:02:53] Black sacrificed a pawn Prevents Qg6+. E13: Queen's Indian/Nimzo-Indian hybrid: 4 Nc3 Bb7 5 Bg5 h6 6 Bh4 Bb4.} 15. Qxe6+ {[%emt 0:00:18]} Qxe6 {[%emt 0:00:13]} 16. dxe6 {[%emt 0:00:05] A sharp opening} Nc5 {[%emt 0:01:06] The position is equal.} 17. O-O {[%emt 0:06:46]} Bxf3 {[%emt 0:08:12]} 18. gxf3 {[%emt 0:00:26]} Nxe6 {[%emt 0:00:03]} 19. Kg2 {[%emt 0:21:18]} Rf8 {[%emt 0:18:44][%mdl 1024] Black has compensation.} 20. Rad1 {[%emt 0:06:51]} Kd7 {[%emt 0:00:25]} 21. Rfe1 $146 {[%emt 0:18:16]} (21. h3 Rf7 22. e4 Kc6 23. Rfe1 Raf8 24. Re3 Rg8 25. e5 Nf4+ 26. Kh2 dxe5 27. Rxe5 {½-½ Pedersen,N (2465)-Stefansson,H (2516) Copenhagen Challenge 2012 (5)}) 21... Kc6 {[%emt 0:01:34]} 22. Rd5 {[%emt 0:05:45]} Rf7 {[%emt 0:13:39]} 23. e4 {[%emt 0:02:11]} Raf8 {[%emt 0:14:28]} 24. Re3 {[%emt 0:01:40]} Nf4+ {[%emt 0:02:04] Black is slightly better.} 25. Bxf4 {[%emt 0:00:06]} Rxf4 {[%emt 0:00:04]} 26. Kg3 {[%emt 0:02:53]} R8f7 {[%emt 0:02:05] Weighted Error Value: White=0.13 (very precise) /Black=0.11 (very precise)   Inaccurate:     	White=2     	Black=1      OK:         	White=3     	Black=6      Best:        	White=1     	---} 1/2-1/2

[Event "4NCL Div 1 2024-25"]
[Site "England"]
[Date "2025.04.05"]
[Round "7.10"]
[White "Kantor, Gergely"]
[Black "Merry, Alan B"]
[Result "1-0"]
[Annotator "TA"]
[ECO "D24"]
[WhiteElo "2558"]
[BlackElo "2417"]
[PlyCount "57"]
[EventDate "2024.11.23"]
[EventType "team-tourn"]
[EventCountry "ENG"]
[SourceTitle "playchess.com"]
[Source "ChessBase"]
[SourceQuality "1"]
[TimeControl "40/6000+30:3000+30"]

{[%evp 9,57,31,56,52,47,51,61,50,48,27,62,25,29,20,37,18,37,24,27,29,47,0,11,4,29,0,8,-45,36,50,46,43,104,81,112,79,238,180,358,354,750,616,1492,1486,1708,1571,29993,29994,29994,29995]} 1. d4 {[%emt 0:11:45]} Nf6 {[%emt 0:10:05]} 2. c4 {[%emt 0:00:05]} e6 {[%emt 0:00:03]} 3. Nf3 {[%emt 0:00:02]} d5 {[%emt 0:00:04]} 4. Nc3 {[%emt 0:00:01]} dxc4 {[%emt 0:00:04]} 5. e4 {[%emt 0:00:04][%cal Be2e4,Be4e5][%mdl 32]} b5 {[%emt 0:00:11]} 6. e5 $1 {[%emt 0:00:15] D24: Queen's Gambit Accepted: 3 Nf3 Nf6 4 Nc3.} Nd5 {[%emt 0:00:06]} 7. Nxb5 {[%emt 0:00:12]} Nb6 {[%emt 0:00:05]} 8. Be2 {[%emt 0:00:11] White is slightly better. White is much more active.} Nc6 {[%emt 0:00:09]} 9. Be3 {[%emt 0:00:12]} Be7 {[%emt 0:00:32]} 10. a3 {[%emt 0:00:44]} Rb8 {[%emt 0:02:22]} 11. Qc2 {[%emt 0:17:17]} Na5 {[%emt 0:00:51]} 12. Nc3 {[%emt 0:26:39]} (12. Nxa7 Ba6 13. Qc3 Nb3 $11) 12... Nd5 $146 {[%emt 0:00:57][%cal Oc7c5]} (12... Bb7 13. Rd1 Qd7 14. h4 Nd5 15. Bd2 Nb3 16. Bxc4 Nxd2 17. Qxd2 Nxc3 18. Qxc3 O-O {1-0 Fier,A (2549)-Tari,A (2623) Florianopolis op 11th 2025 (8)}) 13. Bd2 {[%emt 0:05:13]} Nb3 {[%emt 0:01:01]} 14. Rd1 {[%emt 0:00:08] A sharp opening} Ba6 {[%emt 0:08:56]} 15. O-O {[%emt 0:11:51]} Qd7 {[%emt 0:04:50]} 16. Be3 {[%emt 0:09:02]} h6 {[%emt 0:17:01]} (16... O-O $5) 17. Ne4 {[%emt 0:04:02]} (17. Qe4 $5) 17... Qc6 {[%emt 0:02:55]} 18. Ng3 {[%emt 0:02:26]} (18. Nfd2 $11) 18... Nxe3 {[%emt 0:15:50]} (18... O-O $15) 19. fxe3 $14 {[%emt 0:00:04][%cal Od4d5]} O-O {[%emt 0:01:17]} 20. Nh5 {[%emt 0:11:27]} Na5 {[%emt 0:09:23]} ({Black should try} 20... Bb5 $14) 21. b4 {[%emt 0:00:36]} Nb3 {[%emt 0:03:07]} 22. Bd3 {[%emt 0:03:20]} Bb5 $2 {[%emt 0:06:30] [#] A mistake that costs the game.} (22... Qb5 $16) 23. Be4 $1 $18 {[%emt 0:00:27]} Qb6 {[%emt 0:03:36] [#]} (23... Qe8 {was worth a try.} 24. d5 f5 25. exf6 Bxf6) 24. Qf2 $1 {[%emt 0:00:26] And now Qg3 would win.} Kh8 $2 {[%emt 0:05:21]} (24... f5) 25. Qg3 {[%emt 0:01:58][%csl Gh5][%cal Rg3g7]} Rg8 {[%emt 0:01:35]} 26. Nh4 {[%emt 0:00:53]} Bxh4 {[%emt 0:02:54]} 27. Qxh4 {[%emt 0:00:06][%cal Of1f6] Intending Rf6! and mate.} Be8 {[%emt 0:02:38] [#]} 28. Rf6 $1 {[%emt 0:00:44]} g6 {[%emt 0:01:59] [#]} 29. Qf4 $1 {[%emt 0:00:14] Weighted Error Value: White=0.12 (very precise) /Black=0.94  Mistake:       	White=1     	Black=5      Inaccurate:     	White=3     	Black=3      OK:         	White=4     	Black=7      Best:        	White=2     	---        Strong:       	White=2     	---} 1-0

[Event "4NCL Div 1 2024-25"]
[Site "England"]
[Date "2025.04.05"]
[Round "7.11"]
[White "Panjwani, Raja"]
[Black "Royal, Shreyas"]
[Result "0-1"]
[Annotator "TA"]
[ECO "C54"]
[WhiteElo "2448"]
[BlackElo "2520"]
[PlyCount "114"]
[EventDate "2024.11.23"]
[EventType "team-tourn"]
[EventCountry "ENG"]
[SourceTitle "playchess.com"]
[Source "ChessBase"]
[SourceQuality "1"]
[TimeControl "40/6000+30:3000+30"]

{[%evp 10,114,30,14,14,23,27,18,20,16,23,10,24,20,0,-5,9,8,7,-33,-20,-28,-22,-49,-49,-60,-28,-28,-16,-86,-78,-81,-81,-80,-79,-88,-79,-120,-112,-116,-112,-111,-119,-185,-177,-172,-75,-202,-186,-275,-258,-272,-262,-275,-252,-271,-243,-245,-264,-312,-305,-302,-306,-313,-148,-130,-152,-173,-186,-164,-180,-173,-106,-187,-175,-176,-121,-122,-122,-128,-132,-137,-121,-193,-186,-226,-212,-476,-484,-483,-483,-475,-469,-432,-426,-654,-481,-487,-472,-493,-487,-464,-455,-569,-557,-512,-508]} 1. e4 {[%emt 0:10:04]} e5 {[%emt 0:10:25]} 2. Nf3 {[%emt 0:00:08]} Nc6 {[%emt 0:00:08]} 3. Bc4 {[%emt 0:00:13]} Bc5 {[%emt 0:01:23]} 4. O-O {[%emt 0:00:21]} Nf6 {[%emt 0:00:23]} 5. d3 {[%emt 0:00:12]} d6 {[%emt 0:00:08]} 6. c3 {[%emt 0:00:44]} a5 {[%emt 0:00:24] C54: Giuoco Piano: 4 c3 Nf6, main lines with 5 d4 and 5 d3.} 7. Re1 {[%emt 0:04:37]} Ba7 {[%emt 0:00:19]} 8. Nbd2 {[%emt 0:03:34] The main line 8.Nbd2 scores better than 8.Na3.} O-O {[%emt 0:01:45] The position is equal.} 9. h3 {[%emt 0:01:32]} Be6 {[%emt 0:02:01]} 10. Bb5 {[%emt 0:08:11]} Ne7 {[%emt 0:01:30]} 11. d4 {[%emt 0:00:16]} Ng6 {[%emt 0:02:04]} 12. Nf1 {[%emt 0:02:18]} c6 {[%emt 0:06:24]} 13. Bd3 {[%emt 0:00:50]} Nh5 {[%emt 0:09:40]} 14. g3 {[%emt 0:19:35]} Nf6 {[%emt 0:12:59]} (14... Bxh3 $2 15. Ng5 Nf6 16. Nxh3 $18) 15. h4 $146 {[%emt 0:00:27]} (15. Kg2 Qc8 16. h4 d5 17. exd5 Bxd5 18. c4 Bxf3+ 19. Qxf3 Bxd4 20. h5 e4 21. Bxe4 {0-1 Levine,J (2376)-Koustav,C (2546) New York 1000 GM Winter GM-B 2024 (9)}) 15... Re8 {[%emt 0:03:27]} 16. Ne3 {[%emt 0:16:57]} Qd7 {[%emt 0:14:31]} 17. Bc2 {[%emt 0:06:00]} h6 {[%emt 0:07:02] Dodges Ng5} 18. dxe5 {[%emt 0:16:19]} Nxe5 {[%emt 0:02:51]} 19. Nd4 {[%emt 0:00:41]} (19. Nxe5 $11 dxe5 20. Qxd7 Nxd7 21. Nf5) 19... Bh3 {[%emt 0:03:35]} 20. f3 {[%emt 0:04:51]} d5 {[%emt 0:02:21]} 21. f4 {[%emt 0:00:33]} Neg4 {[%emt 0:01:33]} 22. e5 {[%emt 0:00:09]} Ne4 {[%emt 0:02:30]} 23. Bxe4 {[%emt 0:01:45]} dxe4 {[%emt 0:00:11][%csl Oe4] Black has a strong passed pawn} 24. e6 {[%emt 0:02:07]} Rxe6 {[%emt 0:03:32]} 25. Nxg4 {[%emt 0:00:11] Ne5 would now be deadly.} Rg6 {[%emt 0:00:52]} 26. Ne5 {[%emt 0:00:55]} (26. Ne3 $17 Rxg3+ 27. Kf2) 26... Rxg3+ $19 {[%emt 0:00:16] Black attacks} 27. Kh2 {[%emt 0:00:40]} Rg2+ {[%emt 0:00:06][%mdl 1024] Black has strong compensation.} 28. Kh1 {[%emt 0:00:03]} Qd8 $40 {[%emt 0:02:29][%mdl 128] Black goes for the king.} 29. Nf5 {[%emt 0:04:19]} (29. Rg1 $142 Rxg1+ 30. Qxg1) 29... Qf6 $1 {[%emt 0:00:38][%cal Oh3f5]} 30. Qh5 {[%emt 0:03:02][%cal Oc1e3]} g6 {[%emt 0:02:36]} (30... Qxf5 $2 31. Qxf5 $18) 31. Ng4 {[%emt 0:01:45]} Qxf5 {[%emt 0:00:35]} (31... gxh5 $2 32. Nxf6+ Kh8 33. Nxe4 $18 (33. Rxe4 $2 Rg1+ 34. Kh2 Bxf5 $19)) 32. Nxh6+ {[%emt 0:00:07]} Kf8 $1 {[%emt 0:00:33]} (32... Kh7 33. Qxf5 gxf5 34. Nxf7 $17) 33. Qxf5 {[%emt 0:00:54]} gxf5 {[%emt 0:00:08]} 34. Nxf5 {[%emt 0:00:08] White is weak on the light squares} Rc2 {[%emt 0:07:40]} 35. Ne3 {[%emt 0:01:23]} Rf2 {[%emt 0:02:27][%cal Oa8d8]} 36. Nd1 {[%emt 0:00:06]} Bg2+ {[%emt 0:00:04]} (36... Rf3 $1 $19 {is more deadly.} 37. f5 Bxf5) 37. Kh2 $17 {[%emt 0:00:14]} Rc2 {[%emt 0:00:10] Black is much more active. The white rooks are passive.} 38. Ne3 {[%emt 0:01:12]} Bxe3 {[%emt 0:00:07]} 39. Bxe3 {[%emt 0:00:11]} Bf3+ {[%emt 0:04:15]} (39... Rxb2 40. Bc5+ Ke8 41. Rab1 $18) 40. Kh3 {[%emt 0:00:04] [#]} Ke7 {[%emt 0:02:13]} (40... Rxb2 41. Bc5+ Ke8 42. Rab1 $15) ({Better is} 40... Rd8 $1 $19 {[%cal Rd8d3] and ...Rd3! would now be decisive} 41. Rec1 Rxb2) 41. Rg1 {[%emt 0:29:04]} (41. Rac1 $17 Rg2 (41... Rxb2 42. Rb1 $17) 42. Rg1 Rxb2 43. Rb1 Rxb1 (43... Rxa2 44. Rxb7+ Ke6 45. f5+ Kxf5 46. Rxf7+ Ke6 47. Rc7 $11) 44. Rxb1) 41... Rd8 $19 {[%emt 0:26:22][%cal Od8d3]} ({Resist} 41... Rxb2 42. Bd4) 42. Bd4 {[%emt 0:02:46] [#]} Rd5 {[%emt 0:08:01]} (42... b6 $1 $19 43. Bxb6 Rdd2) 43. Rg5 $17 {[%emt 0:02:10]} Rxg5 {[%emt 0:00:31]} 44. fxg5 {[%emt 0:00:10]} Rxb2 {[%emt 0:00:07][%mdl 4096] Endgame KRB-KRB. Black is a pawn up.} 45. c4 {[%emt 0:02:25]} Rd2 {[%emt 0:01:27]} 46. Bf6+ {[%emt 0:04:52]} (46. Bc3 $17 {might work better.} e3 47. Bxa5 (47. Bxd2 $2 exd2 48. Kg3 d1=Q $19)) 46... Ke6 $19 {[%emt 0:00:29]} 47. Rb1 {[%emt 0:01:34]} Kf5 {[%emt 0:01:58]} 48. Rb2 $2 {[%emt 0:03:02]} (48. Rf1) 48... e3 {[%emt 0:02:25] Black is clearly winning.} 49. Kg3 {[%emt 0:00:25]} e2 {[%emt 0:00:52]} 50. Kf2 {[%emt 0:00:15]} Rd1 {[%emt 0:01:01]} 51. Bc3 {[%emt 0:00:23]} Rf1+ {[%emt 0:00:12]} 52. Kg3 {[%emt 0:00:49]} (52. Ke3 $142 Bh5 (52... e1=R+ 53. Bxe1 Rxe1+ 54. Kxf3 $11) 53. Bxa5) 52... Bh5 {[%emt 0:00:12]} (52... e1=R 53. Bxe1 Be4 54. Rf2+ (54. Bxa5 Rf3+ 55. Kh2 Kg4 $17) 54... Rxf2 55. Bxf2 $11 (55. Kxf2 Bb1 $11)) 53. Bxa5 {[%emt 0:00:10]} e1=R {[%emt 0:00:31]} 54. Bxe1 {[%emt 0:00:24]} Rxe1 {[%emt 0:00:04]} 55. Rxb7 {[%emt 0:00:24]} Rc1 {[%emt 0:00:29]} 56. Rb4 {[%emt 0:04:47]} c5 {[%emt 0:00:05]} 57. Rb6 {[%emt 0:00:03]} Rc3+ {[%emt 0:00:04] Weighted Error Value: White=0.28 (precise) /Black=0.12 (very precise)   Missed win:     	---       	Black=1      Mistake:       	White=7     	Black=2      Inaccurate:     	White=4     	Black=1      OK:         	White=19    	Black=22     Best:        	White=5     	Black=7      Strong:       	---       	Black=2} 0-1